Cogmind - Beta 11.1 @@@ ROGUE MODE // 2022.06.05 @ 20:42:44 Player: darki Result: Destroyed by 8R-AWN with 8R-AWN's Boregun Performance ------------- Evolutions (1) 500 Regions Visited (5) 1000 Robots Destroyed (52) 260 Value Destroyed (1160) 1160 Prototype IDs (28) 560 Alien Tech Used (0) 0 Bonus (-406) -406 TOTAL SCORE: 3074 Bonus ------- Follower Combat Kills 7 Aligned with FarCom 300 Friendly Fire -713 Cogmind --------- Core Integrity 0/400 Matter 275/300 Energy 80/100 System Corruption 11% Temperature Cool (0) Movement Core (350) Ox6 Location -9/Exiles Parts ------- > --- POWER (1) -------- (None) > --- PROPULSION (2) --- (None) > --- UTILITY (4) ------ Large Storage Unit > --- WEAPON (2) ------- (None) > --- INVENTORY (15) --- Experimental Sensor Array Improved EM Shotgun Beam Rifle Pulse Rifle Rocket Launcher Mini Grenade Launcher Makeshift Sword Peak State ------------ > --- POWER ------------ Heavy Ion Engine > --- PROPULSION ------- Aluminum Leg > --- UTILITY ---------- Cooling System Large Storage Unit System Purifier > --- WEAPON ----------- YOLO Cannon > --- INVENTORY -------- Experimental Sensor Array Improved EM Shotgun Beam Rifle Pulse Rifle Rocket Launcher Mini Grenade Launcher Makeshift Sword [Rating: 38] Favorites ----------- Power Ion Engine Engine Ion Engine Propulsion Aluminum Leg Leg Aluminum Leg Flight Unit Improved Flight Unit Utility Large Storage Unit Device Cooling System Storage Large Storage Unit Processor Signal Interpreter Hackware Hacking Suite Protection Light Armor Plating Weapon Shotgun Energy Gun Pulse Rifle Energy Cannon YOLO Cannon Ballistic Gun Shotgun Slashing Weapon Makeshift Sword Build | -11 -10 -10 -9 -9 -9 ------- Run | Scr Mat Min Mat Min Exi Slots Evolved 2 | . . . 2 . . Power . | . . . . . . Propulsion . | . . . . . . Utility 2 | . . . 2 . . Weapon . | . . . . . . Parts Attached 45 | . 15 3 19 4 4 Power 4 | . 2 . 2 . . Engine 4 | . 2 . 2 . . Core . | . . . . . . Reactor . | . . . . . . Propulsion 11 | . 4 . 5 2 . Treads . | . . . . . . Leg 10 | . 4 . 4 2 . Wheel . | . . . . . . Hover . | . . . . . . Flight 1 | . . . 1 . . Utility 13 | . 4 2 6 . 1 Device 6 | . 1 2 2 . 1 Storage 3 | . 3 . . . . Processor 1 | . . . 1 . . Hackware 1 | . . . 1 . . Protection 2 | . . . 2 . . Artifact . | . . . . . . Weapon 17 | . 5 1 6 2 3 Energy Gun 8 | . 1 1 4 2 . Energy Cannon 2 | . . . . . 2 Ballistic Gun 4 | . 4 . . . . Ballistic Cannon . | . . . . . . Launcher . | . . . . . . Special Weapon . | . . . . . . Impact Weapon . | . . . . . . Slashing Weapon 3 | . . . 2 . 1 Piercing Weapon . | . . . . . . Special Melee Weapon . | . . . . . . Unidentified Prototypes 5 | . . 1 3 . 1 Parts Lost 15 | . 1 1 6 . 7 Power 2 | . . . 1 . 1 Propulsion 3 | . . . 1 . 2 Utility 5 | . . . 2 . 3 Weapon 5 | . 1 1 2 . 1 Highest Loss Streak 7 | . 1 1 2 . 7 To Critical Strikes 4 | . . . 1 . 3 Average Slot Usage (%) 94 | . 94 92 95 100 84 Engine 12 | . 14 14 10 11 10 Leg 24 | . 27 28 21 22 20 Device 11 | . 9 14 10 11 12 Storage 12 | . 14 14 11 11 11 Hackware 6 | . . . 10 11 10 Protection 5 | . . . 6 11 9 Energy Gun 12 | . 4 6 16 21 7 Ballistic Gun 7 | . 22 14 1 . . Slashing Weapon 1 | . . . 4 . . Naked Turns . | . . . . . . Heaviest Build 52 | 11 32 32 38 39 52 Greatest Support 20 | 20 20 20 20 20 20 Greatest Overweight (x) 13 | . 1 1 1 1 13 Average Overweight (x) . | . . 1 1 1 1 Largest Inventory Capacity 25 | 8 25 15 15 15 15 Average Capacity 13 | 8 9 15 15 15 15 Most Carried 15 | 6 9 15 15 15 15 Average Carried 12 | 6 7 10 14 15 13 Final Capacity 15 | 8 15 15 15 15 15 Final Carried 15 | 6 9 15 15 15 7 Class Distribution -------------------- 67% | Mutant 32% | Scavenger-Mutant Dominant Class ---------------- Mutant | -10/Materials Mutant | -10/Mines Scavenger-Mutant | -9/Materials Mutant | -9/Mines Mutant | -9/Exiles Resources | -11 -10 -10 -9 -9 -9 ----------- Run | Scr Mat Min Mat Min Exi Matter Collected 962 | 186 369 135 189 83 . Remotely . | . . . . . . Salvage Created 1621 | . 398 149 656 359 59 Parts 114 | . 36 20 30 16 12 Haulers Intercepted 3 | . 1 . 2 . . Recyclers Shooed . | . . . . . . Parts Field Recycled . | . . . . . . Retrieved Matter . | . . . . . . Parts Self-Destructed . | . . . . . . Prevented . | . . . . . . Kills | -11 -10 -10 -9 -9 -9 ------- Run | Scr Mat Min Mat Min Exi Combat Hostiles Destroyed 48 | . 13 8 10 11 6 Melee 2 | . . . 2 . . Guns 39 | . 13 8 7 11 . Cannons 1 | . . . . . 1 AOE 5 | . . . . . 5 Classes Destroyed 12 | . 6 2 3 . 1 Worker 1 | . . 1 . . . Builder 1 | . 1 . . . . Tunneler 1 | . . 1 . . . Hauler 3 | . 1 . 2 . . Recycler 1 | . . . 1 . . Operator 1 | . 1 . . . . Watcher 1 | . 1 . . . . Swarmer 17 | . 6 8 . 3 . Grunt 18 | . 7 . 4 7 . Brawler 3 | . . . 2 1 . Sentry 4 | . . . 4 . . Assembled 6 | . . . . . 6 Best Kill Streak 6 | . 6 3 3 3 6 Combat Bots Only 6 | . 5 3 2 3 6 Max Kills in Single Turn 4 | . 2 1 1 2 4 Gunslinging 1 | . . . . 1 . Exploded 3 | . . . . . 3 Melee 1 | . . . 1 . . Uniques/NPCs Destroyed 1 | . . . . . 1 EX-BIN (-9/Exiles) Combat | -11 -10 -10 -9 -9 -9 -------- Run | Scr Mat Min Mat Min Exi Damage Taken 2439 | . 428 296 683 158 874 Core 545 | . 81 56 125 11 272 Absorbed by Shields . | . . . . . . Core Remaining (%) 72 | 100 . 45 . . . Volleys Fired 102 | 1 32 17 34 16 2 Largest 2 | 2 2 2 2 2 1 Hottest 126 | 40 68 68 112 126 100 Shots Fired 198 | 2 64 30 65 33 4 Gun 196 | 2 64 30 65 33 2 Cannon 2 | . . . . . 2 Launcher . | . . . . . . Special . | . . . . . . Kinetic 83 | 2 62 17 2 . . Thermal 97 | . . . 60 33 4 Explosive . | . . . . . . Electromagnetic 18 | . 2 13 3 . . Robot Hit Streak 20 | 1 20 3 9 15 1 Robot Miss Streak 4 | 1 4 4 1 2 1 Penetration Max . | . . . . . . Secondary Targets 8 | . 2 4 . 2 . Max Gunslinging Chain 1 | . 1 1 . 1 . Shots Hit Robots 149 | 1 50 21 53 22 2 Core Hits 82 | . 28 14 21 12 7 Critical Kills 1 | . 1 . . . . Critical Parts Destroyed . | . . . . . . Critical Strikes 9 | . 1 . 6 2 . Burn 8 | . . . 6 2 . Destroy 1 | . 1 . . . . Melee Attacks 13 | . . . 12 . 1 Impact . | . . . . . . Slashing 13 | . . . 12 . 1 Piercing . | . . . . . . Sneak Attacks 4 | . . . 3 . 1 Combat Hostiles . | . . . . . . Follow-up Attacks . | . . . . . . Damage Inflicted 2942 | 8 780 298 1051 374 431 Guns 2117 | 8 780 298 657 374 . Cannons 93 | . . . . . 93 Explosions 267 | . . . . . 267 Melee 465 | . . . 394 . 71 Ramming . | . . . . . . Kinetic 991 | 8 749 191 43 . . Thermal 1314 | . . . 580 374 360 Explosive . | . . . . . . Electromagnetic 172 | . 31 107 34 . . Impact . | . . . . . . Slashing 465 | . . . 394 . 71 Piercing . | . . . . . . Highest Corruption 11 | . . . 11 11 11 Average Corruption 10 | . . . 10 11 11 Corruption Purged . | . . . . . . Corruption Blocked . | . . . . . . Effects 82 | . . . 27 30 25 Message Errors 20 | . . . 6 9 5 Matter Fused 11 | . . . 3 7 1 Heat Flow Errors 10 | . . . 5 1 4 Energy Discharges 11 | . . . 4 3 4 Data Loss (minor) 14 | . . . 6 4 4 Data Loss (major) 7 | . . . 1 2 4 Misfires 4 | . . . . 2 2 Alerts 3 | . . . 1 1 1 Weapon Failures 2 | . . . 1 1 . Overload Shots . | . . . . . . Overflow Damage 12 | . . 6 . . 6 Projectiles . | . . . . . . Explosions 12 | . . 6 . . 6 Melee . | . . . . . . Knockbacks . | . . . . . . Impact . | . . . . . . Kinetic . | . . . . . . Secondary . | . . . . . . Self-Inflicted Damage 52 | . . 14 . . 38 Shots 2 | . . 1 . . 1 Rammed . | . . . . . . Targets Rammed . | . . . . . . Kicked . | . . . . . . Crushed . | . . . . . . Highest Temperature 396 | . 7 42 396 81 142 Average Temperature 63 | . 3 13 105 10 59 Received Heat Transfer 491 | . 177 . 168 66 80 Siege Activations . | . . . . . . Robots Corrupted . | . . . . . . Combat Hostiles . | . . . . . . Parts Fried . | . . . . . . Impact Corruptions . | . . . . . . Robots Melted 1 | . . . 1 . . Combat Hostiles 1 | . . . 1 . . Parts Melted 8 | . . . 7 1 . Heat Transferred 3286 | . . . 1924 962 400 Parts Sabotaged . | . . . . . . Parts Stolen . | . . . . . . Parts Stripped . | . . . . . . Power Chain Reactions 1 | . . 1 . . . Missiles Intercepted . | . . . . . . Alert | -11 -10 -10 -9 -9 -9 ------- Run | Scr Mat Min Mat Min Exi Peak Influence 312 | . 312 148 186 150 . Initial 30 | . . . . 30 . Average 90 | . 131 101 75 55 . Maximum Alert Level 1 | . 1 . . . . Low Security (%) 95 | 100 81 100 100 100 . Level 1 4 | . 18 . . . . Level 2 . | . . . . . . Level 3 . | . . . . . . Level 4 . | . . . . . . Level 5 . | . . . . . . High Security . | . . . . . . Max Security . | . . . . . . Squads Dispatched 2 | . 2 . . . . Investigation . | . . . . . . Extermination . | . . . . . . Reinforcement 2 | . 2 . . . . Assault . | . . . . . . Garrison . | . . . . . . Intercept . | . . . . . . Searches Triggered . | . . . . . . Construction Impeded . | . . . . . . Haulers Reinforced . | . . . . . . Active Scanning Responses . | . . . . . . Cargo Convoy Interrupts . | . . . . . . Stealth | -11 -10 -10 -9 -9 -9 --------- Run | Scr Mat Min Mat Min Exi Distress Signals 4 | . 2 . 2 . . Communications Jammed . | . . . . . . Distress Signals . | . . . . . . Times Spotted 73 | . 24 8 19 14 8 Peak Tracking Total 9 | . 5 3 4 3 9 Tactical Retreats 5 | . 1 . 2 2 . Traps | -11 -10 -10 -9 -9 -9 ------- Run | Scr Mat Min Mat Min Exi Traps Triggered 2 | . 2 . . . . Indirectly . | . . . . . . Trap Hack Attempts . | . . . . . . Triggered . | . . . . . . Disarmed . | . . . . . . Reprogrammed . | . . . . . . Reused 2 | . . . 2 . . Traps Extracted . | . . . . . . Installed 2 | . . . 2 . . Triggered 2 | . . . 2 . . Most Traps Carried 5 | . . 5 5 3 3 Machines | -11 -10 -10 -9 -9 -9 ---------- Run | Scr Mat Min Mat Min Exi Machines Disabled 3 | . . . 1 1 1 Max in Single Turn 1 | . . . 1 1 1 Machines Sabotaged . | . . . . . . Garrisons Compromised . | . . . . . . Overloaded Fab Kills . | . . . . . . Hacking | -11 -10 -10 -9 -9 -9 --------- Run | Scr Mat Min Mat Min Exi Machines Accessed 12 | . 5 . 6 . 1 Terminals 9 | . 4 . 5 . . Fabricators . | . . . . . . Repair Stations . | . . . . . . Recycling Units 1 | . 1 . . . . Scanalyzers 1 | . . . 1 . . Garrison Access . | . . . . . . Total Hacks 26 | . 7 . 18 . 1 Successful 14 | . 4 . 9 . 1 Failed 12 | . 3 . 9 . . Catastrophic . | . . . . . . Database Lockouts . | . . . . . . Manual 16 | . 6 . 9 . 1 Terminals 18 | . 6 . 12 . . Fabricators . | . . . . . . Repair Stations . | . . . . . . Recycling Units 1 | . 1 . . . . Scanalyzers 6 | . . . 6 . . Garrison Access . | . . . . . . Terminal Hacks 5 | . 1 . 3 . 1 Record 1 | . . . 1 . . Part Schematic 1 | . . . 1 . . Branch Access Points 1 | . . . 1 . . Unreport Threat 1 | . 1 . . . . EX-Prototype ID Bank 1 | . . . . . 1 Fabricator Hacks . | . . . . . . Repair Station Hacks . | . . . . . . Recycling Unit Hacks 1 | . 1 . . . . Report Inventory 1 | . 1 . . . . Scanalyzer 3 | . . . 3 . . Insert Component 1 | . . . 1 . . Analyze 2 | . . . 2 . . Garrison Access Hacks . | . . . . . . Unauthorized Hacks 5 | . 2 . 3 . . Terminals 5 | . 2 . 3 . . Assimilate 1 | . . . 1 . . Botnet 4 | . 2 . 2 . . Fabricators . | . . . . . . Repair Stations . | . . . . . . Recycling Units . | . . . . . . Scanalyzers . | . . . . . . Garrison Access . | . . . . . . Data Cores Recovered . | . . . . . . Used . | . . . . . . Hacking Detections 8 | . 3 . 5 . . Full Trace Events . | . . . . . . Feedback Events . | . . . . . . Feedback Blocked . | . . . . . . Robot Schematics Acquired . | . . . . . . Robots Built . | . . . . . . Authchips . | . . . . . . Time . | . . . . . . Total Robot Build Rating . | . . . . . . Part Schematics Acquired 1 | . . . 1 . . Parts Built . | . . . . . . Authchips . | . . . . . . Time . | . . . . . . Total Part Build Rating . | . . . . . . Parts Repaired . | . . . . . . Time . | . . . . . . Parts Recycled . | . . . . . . Recycled Matter . | . . . . . . Retrieved Matter . | . . . . . . Retrieved Components . | . . . . . . Parts Scanalyzed 1 | . . . 1 . . Part Schematics Acquired . | . . . . . . Parts Damaged . | . . . . . . Bothacking | -11 -10 -10 -9 -9 -9 ------------ Run | Scr Mat Min Mat Min Exi Used RIF Installer . | . . . . . . Robots Hacked . | . . . . . . Non-combat . | . . . . . . Combat . | . . . . . . Robot Hacks Applied . | . . . . . . Relay Couplers Released . | . . . . . . Fabnet Peak Effective % . | . . . . . . Robots Rewired . | . . . . . . Allies Hacked . | . . . . . . Hacks Repelled . | . . . . . . Allies | -11 -10 -10 -9 -9 -9 -------- Run | Scr Mat Min Mat Min Exi Total Allies 3 | . . 2 1 . . Largest Group 2 | . . 2 2 1 . Highest-Rated Group 38 | . . 38 38 10 . Highest-Rated Ally 31 | . . 31 31 10 . Total Orders . | . . . . . . Ally Attacks 9 | . . 5 4 . . Total Damage 85 | . . 42 43 . . Kills 2 | . . 1 1 . . Allies Corrupted 1 | . . . 1 . . Allies Melted . | . . . . . . Intel | -11 -10 -10 -9 -9 -9 ------- Run | Scr Mat Min Mat Min Exi Robot Analysis Total . | . . . . . . Derelict Logs Recovered 3 | . . 2 . 1 . Drone Launches . | . . . . . . Drone Recoveries . | . . . . . . Exploration | -11 -10 -10 -9 -9 -9 ------------- Run | Scr Mat Min Mat Min Exi Turns Passed 4306 | 4 906 811 1052 911 622 Spaces Moved 1915 | 2 483 375 426 336 293 Core 2 | . . . . . 2 Treads . | . . . . . . Legs 1913 | 2 483 375 426 336 291 Wheels . | . . . . . . Hover . | . . . . . . Flight . | . . . . . . Fastest Speed 120 | 120 120 190 190 190 190 Average Speed 179 | 120 138 190 190 190 202 Slowest Speed 700 | 120 190 190 190 190 700 Overloaded Moves . | . . . . . . Propulsion Burnouts . | . . . . . . Robots Hopped . | . . . . . . Cave-ins Triggered . | . . . . . . Exploration Rate (%) 52 | 2 78 86 42 64 40 Regions Visited 5 Branch Regions 3 Pre-discovered Areas 3 | . . 2 . 1 . Known Exits Taken 1 | . . . 1 . . Unknown Exits Taken 4 | 1 1 1 . 1 . Scrap Searched 2 | . . 1 . 1 . Spaces Dug 2 | . . . 2 . . Terrain Destroyed 17 | . . 6 2 . 9 Melee 2 | . . . 2 . . Projectile 1 | . . . . . 1 AOE 14 | . . 6 . . 8 Terrain Rammed . | . . . . . . Walls Destroyed . | . . . . . . Machines Disabled . | . . . . . . Actions | -11 -10 -10 -9 -9 -9 --------- Run | Scr Mat Min Mat Min Exi Total 2590 | 2 653 443 592 578 322 Wait 455 | . 111 42 79 220 3 Move 1910 | 1 482 374 425 335 293 Hop . | . . . . . . Pick Up 21 | . 5 6 6 1 3 Fast Attach 20 | . 6 1 11 . 2 Attach 10 | . 2 1 5 . 2 Detach 7 | . . 1 4 . 2 Swap 15 | . 7 1 3 4 . Drop 35 | . 8 . 11 2 14 Fire 102 | 1 32 17 34 16 2 Melee 13 | . . . 12 . 1 Ram . | . . . . . . Kick . | . . . . . . Crush . | . . . . . . Escape Stasis . | . . . . . . Rewire . | . . . . . . Trap 2 | . . . 2 . . Miscellaneous . | . . . . . . Route ------- -11/Scrapyard -10/Materials (discovered 4 exits: *Mat x3 / [*Min]) -10/Mines (discovered 2 exits: *Mat x2) -9/Materials (discovered 3 exits: [*Mat] / *Min / Sto) -9/Mines (discovered 2 exits: *Exi / [*Zio]) -9/Exiles History --------- Turn | Location | Event 1 | -11/Scrapyard | Discovered new exit (range 1) 5 | -11/Scrapyard | Entered Materials 291 | -10/Materials | Discovered new exit (range 15) 314 | -10/Materials | Build established: Mutant 531 | -10/Materials | Discovered new exit (range 15) 616 | -10/Materials | Discovered new exit (range 16) 868 | -10/Materials | Discovered new exit (range 10) 911 | -10/Materials | Entered Mines 1105 | -10/Mines | Learned location of Mines (-8) 1125 | -10/Mines | Learned location of Storage (-9) 1188 | -10/Mines | A weapon hastily lodged in a ceiling crevice suddenly fell to the ground 1395 | -10/Mines | Core integrity fell below 50% 1472 | -10/Mines | Found a damaged Exp. Sensor Array with a note attached 1497 | -10/Mines | Found Prototype Device 1497 | -10/Mines | Identified Exp. Sensor Array 1572 | -10/Mines | Found a hidden stash of uninstalled traps 1634 | -10/Mines | Discovered new exit (range 9) 1657 | -10/Mines | Discovered new exit (range 12) 1672 | -10/Mines | Learned Materials emergency access door positions 1722 | -10/Mines | Entered Materials 1722 | -9/Materials | Accompanied by 2 allies 1722 | -9/Materials | Evolved 2 slots: Utility x2 1731 | -9/Materials | Led the pair of lost Derelicts to an unsafe place 2075 | -9/Materials | System corruption reached 10% 2076 | -9/Materials | Build established: Scavenger-Mutant 2293 | -9/Materials | Discovered new exit (range 8) 2665 | -9/Materials | Discovered new exit (range 15) 2696 | -9/Materials | Identified exit to Mines 2696 | -9/Materials | Identified exit to Storage 2774 | -9/Materials | Entered Mines 2774 | -9/Mines | Accompanied by 1 ally 2873 | -9/Mines | Excavation squad dispatched 2873 | -9/Mines | A large section of the Mines collapsed 3123 | -9/Mines | Excavation squad dispatched 3373 | -9/Mines | Excavation squad dispatched 3423 | -9/Mines | Learned location of Zion (-7) 3488 | -9/Mines | Build established: Mutant 3496 | -9/Mines | Received a Rocket Launcher from a helpful Derelict 3623 | -9/Mines | Excavation squad dispatched 3647 | -9/Mines | A Derelict revealed a hidden shortcut to a safe place 3678 | -9/Mines | Deemed a non-threat by the Exiles lab entrance 3678 | -9/Mines | Discovered new exit (range 5) 3685 | -9/Mines | Entered Exiles 3739 | -9/Exiles | Met 8R-AWN 3770 | -9/Exiles | Met EX-HEX 3825 | -9/Exiles | Met EX-BIN 3848 | -9/Exiles | Aligned with FarCom system 3850 | -9/Exiles | Given EX-Vault access code 3893 | -9/Exiles | Opened EX-Vault 3906 | -9/Exiles | Found YOLO Cannon 3963 | -9/Exiles | Warned to stay clear of 0b10 Research branches 4235 | -9/Exiles | Destroyed EX-BIN 4236 | -9/Exiles | Attacked by the Exiles 4239 | -9/Exiles | Found Prototype Device 4239 | -9/Exiles | Identified System Purifier 4258 | -9/Exiles | Core integrity fell below 50% 4286 | -9/Exiles | Core integrity fell below 20% 4307 | -9/Exiles | Destroyed by 8R-AWN with 8R-AWN's Boregun Last Messages --------------- 04263_ as-36136 destroyed. 04263_ as-54828 destroyed. 04263_ as-98382 destroyed. 04267_ Rigged Nuclear Core explodes. 04269_ System corrupted: Matter fused (-10). 04276_ Penetrated by HV Slug. 04278_ Critical hit (Destroy). 04278_ Hvy. Ion Engine destroyed. 04280_ HV Slug penetrates Wall. 04280_ Penetrated by HV Slug. 04294_ Cooling System destroyed. 04294_ Penetrated by HV Slug. 04294_ Critical hit (Destroy). 04294_ Aluminum Leg destroyed. 04296_ Penetrated by HV Slug. 04303_ Critical hit (Destroy). 04303_ YOLO Cannon destroyed. 04305_ Penetrated by HV Slug. 04305_ System Purifier destroyed. 04305_ Penetrated by HV Slug. Map ----- +----------------------------------------------------+ | | | | | | | ???????????????????#########?????????????????????? | | ???????????????????# #?????????????????????? | | ???????????????????# ! [#?????????????????????? | | ???????????????????#! [ #?????????????????????? | | ???????????????????# X#?????????????????????? | | ???????????????????## ##?????????????????????? | | ???????????????????#X #??????????????????????? | | ???????????????????## #??????????????????????? | | ????????????????????# #??????????????????????? | | ????????????????????# #???####???????????????? | | ????????????????????# #??"""""#??????????????? | | ????????????????????# ## """#??????????????? | | ????????????????????# X""#??????????????? | | ????????????????????# ## """#??????????????? | | ???????????????###??# #??"""""#??????????????? | | ??????????????"""""?# #???###????????????????? | | ??????????????""" ## #??????????????????????? | | ????????????#""X" #??????????????????????? | | ????????????#" #??????????????????????? | | ????????????#" ## !!#??????????????????????? | | ????????????#""""""?# ###########????????????? | | ??????????????"###??# ;##"""""""#????????????? | | ????????????????????# @ ##"""""""#????????????? | | ????????????????????# #""""""""#????????????? | | ???????????????????## #"" """"#????????????? | | ???????????????????#" """"#????????????? | | ???????????????????#" *!"""#????????????? | | ???????????????????#" % !!!"""#????????????? | | ???????????????????#" !=%"""#????????????? | | ???????????????????#" =! """#????????????? | | ???????????????????#" !!"""#????????????? | | ???????????????????## !"""""???????????? | | ????????????????????# """##???????????? | | ????????????????????#" X" """"????????????? | | ????????????????????#" "" #????????????? | | ????????????????????#" % """"""#????????????? | | ???????????????????##" ;;;#######????????????? | | ??????????????????##"" g; ##??????????????????? | | ????????????????###"" %" #????????????????????? | | ????????????????""""" &##?????????????????????? | | ??????????????"" " "" ##???###########??????? | | ??????????????"" " #####"""""""""##?????? | | ????????????? " " """ """"##????? | | ??????????? "" " #????? | | ?????????? " """#????? | | ??????????? " "#????? | | ??????????? " "##???? | +----------------------------------------------------+ Best States ------------- Heat Dissipation 50 Energy Generation 14 Energy Capacity 280 Matter Stores 300 Matter Capacity 300 Sight Range 16 Terrain Scan Density 10 Armor Coverage 150 Power Shielding 33 Evasion (%) 55 Offensive Hacking 10 Item Schematics ----------------- Propulsion Shielding | -9/Materials | Hacked Robot Schematics ------------------ None Fabricated ------------ Nothing Alien Tech Used ----------------- None Achievements -------------- None Challenges ------------ None Game ------ Seed SeismicIntegratedLaser Manual? 0 Play Time 00:28:43 Cumulative 94.9 hours Start 2022.06.05 @ 20:02:50 End 2022.06.05 @ 20:42:44 Sessions 1 Manual Loads 0 Difficulty Rogue Special Mode None Game No. 104 Rogue 104 Adventurer 0 Explorer 0 Win Type - Total 0 Types 0/0/0/0/0/0/0/0/0 Lore% 48 Gallery% 61 Achievement% 45 Wizard Run 0 Options --------- ASCII 0 Keyboard 0 Movement Mouse Keybinds 0 Fullscreen 1 Font 18/SmallcapsGlow Map View 76x50 Tactical HUD 1 Map Filters NONE Filters NONE Steam 1 RUN: 6ccd86a3-43e5-4da7-a98e-5c6a87c58ddc